Cogmind - Beta 16.1 @@@ ROGUE MODE // 2026.03.30 @ 22:53:32 Player: mephiles96 Result: Destroyed by Autobeam Turret with Autobeam Performance ------------- Evolutions (0) 0 Regions Visited (3) 600 Robots Destroyed (24) 120 Value Destroyed (436) 436 Prototype IDs (0) 0 Alien Tech Used (0) 0 Bonus (83) 83 TOTAL SCORE: 1239 Bonus ------- Follower Combat Kills 83 Cogmind --------- Core Integrity 0/250 Matter 270/300 Energy 41/100 System Corruption 0% Temperature Cool (6) Movement Rolling (115) Ox1 Location -10/Subcaves Parts ------- > --- POWER (1) -------- (None) > --- PROPULSION (2) --- Compact Wheel > --- UTILITY (2) ------ Heat Sink Large Storage Unit > --- WEAPON (2) ------- Subdweller Laser Subdweller Laser > --- INVENTORY (15) --- Flight Unit Flight Unit Flight Unit Flight Unit Flight Unit Medium Storage Unit Signal Interpreter Improved Terrain Scanner Targeting Computer Light Armor Plating EM Pulse Gun Battle Cannon Hammer Peak State ------------ > --- POWER ------------ Ion Engine > --- PROPULSION ------- Compact Wheel > --- UTILITY ---------- Heat Sink Large Storage Unit > --- WEAPON ----------- Subdweller Laser Subdweller Machine Gun > --- INVENTORY -------- Flight Unit Flight Unit Flight Unit Flight Unit Flight Unit Medium Storage Unit Signal Interpreter Improved Terrain Scanner Targeting Computer Light Armor Plating EM Pulse Gun Medium Laser Battle Cannon Grenade Launcher Hammer [Rating: 9] Favorites ----------- Power Ion Engine Engine Ion Engine Propulsion Light Treads Treads Light Treads Wheel Compact Wheel Utility Large Storage Unit Device Seismic Detector Storage Large Storage Unit Weapon Medium Laser Energy Gun Medium Laser Ballistic Gun Assault Rifle Launcher Grenade Launcher Impact Weapon Hammer Build | -11 -10 -10 -10 ------- Run | Yrd Mat Min Sub Slots Evolved . | . . . . Power . | . . . . Propulsion . | . . . . Utility . | . . . . Weapon . | . . . . Parts Attached 19 | 8 3 3 5 Power 3 | 1 1 1 . Engine 3 | 1 1 1 . Core . | . . . . Reactor . | . . . . Propulsion 3 | 2 . . 1 Treads 2 | 2 . . . Leg . | . . . . Wheel 1 | . . . 1 Hover . | . . . . Flight . | . . . . Utility 4 | 2 1 . 1 Device 2 | 1 . . 1 Storage 2 | 1 1 . . Processor . | . . . . Hackware . | . . . . Protection . | . . . . Artifact . | . . . . Weapon 9 | 3 1 2 3 Energy Gun 5 | 2 1 . 2 Energy Cannon . | . . . . Ballistic Gun 2 | 1 . . 1 Ballistic Cannon . | . . . . Launcher 1 | . . 1 . Special Weapon . | . . . . Impact Weapon 1 | . . 1 . Slashing Weapon . | . . . . Piercing Weapon . | . . . . Special Melee Weapon . | . . . . Unidentified Prototypes . | . . . . Parts Lost 6 | . . . 6 Power 1 | . . . 1 Propulsion 2 | . . . 2 Utility 1 | . . . 1 Weapon 2 | . . . 2 Highest Loss Streak 2 | . . . 2 To Critical Strikes . | . . . . Average Backups 12 | 6 9 14 14 Power . | . . . . Propulsion 4 | 3 3 5 5 Utility 4 | . 1 5 5 Weapon 3 | 1 2 3 3 Tool/Special . | . . . . Unused Backups 16 | . 4 1 11 Power . | . . . . Propulsion 8 | . 3 . 5 Utility 5 | . . . 5 Weapon 3 | . 1 1 1 Tool/Special . | . . . . Average Slot Usage (%) 93 | . 100 100 85 Engine 13 | . 14 14 13 Treads 17 | . 28 28 2 Wheel 5 | . . . 12 Device 13 | . 14 14 13 Storage 14 | . 14 14 14 Energy Gun 25 | . 22 25 25 Ballistic Gun 1 | . 5 . 1 Peak Build Rating 9 | 8 8 8 9 Average Rating 8 | 6 7 8 8 On Entrance 6 | . 8 8 8 Avg Prop Armor Cover (%) 14 | . . . 14 Naked Turns . | . . . . Heaviest Build 34 | 13 27 30 34 Greatest Support 40 | 40 40 40 40 Greatest Overweight (x) 2 | 2 . . 2 Average Overweight (x) . | . . . 1 Largest Inventory Capacity 15 | 8 15 15 15 Average Capacity 13 | 7 10 15 15 Most Carried 15 | 8 14 15 15 Average Carried 12 | 6 9 14 14 Final Capacity 15 | 8 15 15 15 Final Carried 15 | 8 14 15 13 Class Distribution -------------------- 71% | Mutant 28% | Scavenger-Mutant Dominant Class ---------------- Mutant | -10/Materials Mutant | -10/Mines Scavenger-Mutant | -10/Subcaves Resources | -11 -10 -10 -10 ----------- Run | Yrd Mat Min Sub Matter Collected 560 | 316 108 70 66 Remotely . | . . . . Salvage Created 661 | 162 299 18 182 Parts 44 | 8 21 3 12 Haulers Intercepted . | . . . . Recyclers Shooed 2 | 1 1 . . Parts Field Recycled . | . . . . Retrieved Matter . | . . . . Parts Self-Destructed 4 | . . . 4 Prevented . | . . . . Parts Restored . | . . . . Kills | -11 -10 -10 -10 ------- Run | Yrd Mat Min Sub Combat Hostiles Destroyed 17 | . 7 3 7 Guns 11 | . 7 . 4 AOE 6 | . . 3 3 Classes Destroyed 7 | 3 2 . 2 Worker 2 | 1 . 1 . Tunneler 3 | 3 . . . Recycler 2 | 1 1 . . Swarmer 9 | . 3 3 3 Grunt 4 | . 4 . . Sentry 1 | . . . 1 Subdweller 3 | . . . 3 Best Kill Streak 4 | 2 3 4 3 Combat Bots Only 3 | . 3 3 3 Max Kills in Single Turn 3 | 1 1 2 3 Gunslinging . | . . . . Exploded 3 | . . 2 3 Melee . | . . . . Uniques/NPCs Destroyed . | . . . . Combat | -11 -10 -10 -10 -------- Run | Yrd Mat Min Sub Hostile Shots Fired 132 | . 34 7 91 Missed 46 | . 7 2 37 Hits 86 | . 27 5 54 Projectile 86 | . 27 5 54 AOE 1 | . . . 1 Critical Strikes 2 | . 1 . 1 Damage Taken 1058 | . 273 95 690 Core 257 | . 89 . 168 Absorbed by Shields . | . . . . Regen/Repaired (Parts) 14 | . 14 . . Core Remaining (%) 100 | 100 . . . Volleys Fired 58 | 12 20 4 22 Largest 2 | 2 2 2 2 Hottest 120 | 70 90 70 120 Shots Fired 115 | 24 40 7 44 Gun 110 | 24 40 4 42 Cannon . | . . . . Launcher 5 | . . 3 2 Special . | . . . . Kinetic 32 | 12 16 . 4 Thermal 75 | 12 21 4 38 Explosive 5 | . . 3 2 Electromagnetic 3 | . 3 . . Robot Hit Streak 17 | 5 6 1 17 Robot Miss Streak 4 | 4 4 . 2 Penetration Max . | . . . . Secondary Targets 3 | . 3 . . Max Gunslinging Chain 1 | . 1 . . Shots Hit Robots 74 | 14 25 1 34 Core Hits 33 | 5 12 4 12 Critical Kills . | . . . . Critical Parts Destroyed 1 | . . . 1 Critical Strikes 3 | 1 . . 2 Burn 2 | 1 . . 1 Destroy 1 | . . . 1 Melee Attacks 10 | . . 10 . Impact 10 | . . 10 . Slashing . | . . . . Piercing . | . . . . Sneak Attacks . | . . . . Combat Hostiles . | . . . . Follow-up Attacks . | . . . . Damage Inflicted 1432 | 213 318 193 708 Guns 1036 | 213 318 . 505 Cannons . | . . . . Explosions 396 | . . 193 203 Melee . | . . . . Ramming . | . . . . Kinetic 292 | 110 115 . 67 Thermal 703 | 103 162 . 438 Explosive 396 | . . 193 203 Electromagnetic 41 | . 41 . . Impact . | . . . . Slashing . | . . . . Piercing . | . . . . Highest Corruption . | . . . . Average Corruption . | . . . . Corruption Purged . | . . . . Corruption Blocked . | . . . . Overload Shots . | . . . . Overflow Damage 42 | . . 8 34 Projectiles . | . . . . Explosions 42 | . . 8 34 Melee . | . . . . Knockbacks . | . . . . Impact . | . . . . Kinetic . | . . . . Secondary . | . . . . Self-Inflicted Damage 117 | . . 55 62 Shots 4 | . . 2 2 Rammed . | . . . . Targets Rammed . | . . . . Kicked . | . . . . Crushed . | . . . . Highest Temperature 195 | 36 195 27 . Average Temperature 48 | 14 70 13 . Received Heat Transfer 336 | . 108 . 228 Siege Activations . | . . . . Martial Activations . | . . . . Shielding Activations . | . . . . Robots Disrupted . | . . . . Combat Hostiles . | . . . . Robots Corrupted . | . . . . Combat Hostiles . | . . . . Parts Fried . | . . . . Impact Corruptions . | . . . . Robots Melted . | . . . . Combat Hostiles . | . . . . Parts Melted 1 | . 1 . . Heat Transferred 1819 | 370 481 . 968 Parts Sabotaged . | . . . . Parts Stolen . | . . . . Parts Stripped . | . . . . Power Chain Reactions . | . . . . Alert | -11 -10 -10 -10 ------- Run | Yrd Mat Min Sub Maximum Alert Level . | . . . . Low Security (%) 100 | 100 100 100 . Level 1 . | . . . . Level 2 . | . . . . Level 3 . | . . . . Level 4 . | . . . . Level 5 . | . . . . High Security . | . . . . Max Security . | . . . . Peak Influence 105 | 5 105 89 . Initial . | . . . . Average 13 | 1 26 8 . Influence Increases 594 | 25 184 185 200 Destroy 0b10 Robot/C 340 | . 140 120 80 Destroy 0b10 Robot/NC 35 | 25 5 5 . Destroy Leader 40 | . 30 10 . Allied During Kill 4 | . . 4 . Successful Hack 8 | . 8 . . Disable Machine 15 | . . 15 . Destroy Structure 17 | . 1 16 . Lose Combat Pursuer 135 | . . 15 120 Influence Decreases 442 | 25 184 151 82 Entered New Map 18 | . . . 18 Time Decay 384 | 25 184 131 44 Lost Part 20 | . . . 20 Lost Ally 20 | . . 20 . Squads Dispatched 2 | . 2 . . Investigation 1 | . 1 . . Extermination . | . . . . Reinforcement 1 | . 1 . . Assault . | . . . . Garrison . | . . . . Intercept . | . . . . Searches Triggered . | . . . . Construction Impeded . | . . . . Haulers Reinforced . | . . . . Active Scanning Responses . | . . . . Cargo Convoy Interrupts . | . . . . Stealth | -11 -10 -10 -10 --------- Run | Yrd Mat Min Sub Distress Signals . | . . . . Communications Jammed . | . . . . Distress Signals . | . . . . Times Spotted 35 | . 10 8 17 Peak Tracking Total 6 | . 3 3 6 Tactical Retreats 3 | . . 1 2 Traps | -11 -10 -10 -10 ------- Run | Yrd Mat Min Sub Traps Triggered 1 | . 1 . . Indirectly . | . . . . Trap Hack Attempts . | . . . . Triggered . | . . . . Disarmed . | . . . . Reprogrammed . | . . . . Reused . | . . . . Traps Extracted . | . . . . Installed . | . . . . Triggered . | . . . . Machines | -11 -10 -10 -10 ---------- Run | Yrd Mat Min Sub Machines Disabled 2 | . . 1 1 Max in Single Turn 1 | . . . 1 Machines Repaired . | . . . . Machines Dismantled . | . . . . Machines Sabotaged . | . . . . Overloaded Fab Kills . | . . . . Hacking | -11 -10 -10 -10 --------- Run | Yrd Mat Min Sub Machines Accessed 4 | . 4 . . Terminals 3 | . 3 . . Fabricators . | . . . . Repair Stations 1 | . 1 . . Recycling Units . | . . . . Scanalyzers . | . . . . Garrison Access . | . . . . Total Hacks 8 | . 8 . . Successful 6 | . 6 . . Failed 2 | . 2 . . Catastrophic 2 | . 2 . . Database Lockouts . | . . . . Manual 6 | . 6 . . Terminals 6 | . 6 . . Fabricators . | . . . . Repair Stations 2 | . 2 . . Recycling Units . | . . . . Scanalyzers . | . . . . Garrison Access . | . . . . Terminal Hacks 2 | . 2 . . Branch Access Points 1 | . 1 . . Zone Layout 1 | . 1 . . Fabricator Hacks . | . . . . Repair Station Hacks 2 | . 2 . . Scan Component 1 | . 1 . . Repair 1 | . 1 . . Recycling Unit Hacks . | . . . . Scanalyzer . | . . . . Garrison Access Hacks . | . . . . Unauthorized Hacks 2 | . 2 . . Terminals 2 | . 2 . . Botnet 2 | . 2 . . Fabricators . | . . . . Repair Stations . | . . . . Recycling Units . | . . . . Scanalyzers . | . . . . Garrison Access . | . . . . Data Cores Recovered . | . . . . Used . | . . . . Hacking Detections 2 | . 2 . . Full Trace Events . | . . . . Feedback Events . | . . . . Feedback Blocked . | . . . . Robot Schematics Acquired . | . . . . Robots Built . | . . . . Authchips . | . . . . Time . | . . . . Total Robot Build Rating . | . . . . Part Schematics Acquired . | . . . . Parts Built . | . . . . Authchips . | . . . . Time . | . . . . Total Part Build Rating . | . . . . Part Studies Acquired . | . . . . Parts Repaired 1 | . 1 . . Time 26 | . 26 . . Parts Recycled . | . . . . Recycled Matter . | . . . . Retrieved Matter . | . . . . Retrieved Components . | . . . . Parts Scanalyzed . | . . . . Part Schematics Acquired . | . . . . Parts Damaged . | . . . . Bothacking | -11 -10 -10 -10 ------------ Run | Yrd Mat Min Sub Used RIF Installer . | . . . . Robots Hacked . | . . . . Non-combat . | . . . . Combat . | . . . . Robot Hacks Applied . | . . . . Relay Couplers Released . | . . . . Fabnet Peak Effective % . | . . . . Robots Rewired . | . . . . Allies Hacked . | . . . . Hacks Repelled . | . . . . Allies | -11 -10 -10 -10 -------- Run | Yrd Mat Min Sub Total Allies 2 | . . 2 . Largest Group 2 | . . 2 . Highest-Rated Group 54 | . . 54 . Highest-Rated Ally 31 | . . 31 . Total Orders . | . . . . Ally Attacks 17 | . . 17 . Total Damage 292 | . . 292 . Kills 3 | . . 3 . Allies Corrupted . | . . . . Allies Melted . | . . . . Intel | -11 -10 -10 -10 ------- Run | Yrd Mat Min Sub Active Infowar (turns) 2508 | 101 679 1364 364 Seismic 2508 | 101 679 1364 364 Robot Analysis Total . | . . . . Derelict Logs Recovered 3 | . . 2 1 Drone Launches . | . . . . Drone Recoveries . | . . . . Exploration | -11 -10 -10 -10 ------------- Run | Yrd Mat Min Sub Turns Passed 3762 | 223 679 1364 1496 Spaces Moved 2347 | 109 348 811 1079 Core 11 | 11 . . . Treads 1294 | 98 348 811 37 Legs . | . . . . Wheels 1042 | . . . 1042 Hover . | . . . . Flight . | . . . . Fastest Speed 50 | 50 160 160 115 Average Speed 145 | 153 160 160 128 Slowest Speed 240 | 160 160 160 240 Overloaded Moves . | . . . . Propulsion Burnouts . | . . . . Robots Hopped . | . . . . Potential Cave-ins 3 | . . . 3 Cave-ins Triggered . | . . . . Exploration Rate (%) 52 | 4 49 94 64 Regions Visited 3 Branch Regions 2 Pre-discovered Areas 2 | . . 1 1 Known Exits Taken 1 | . 1 . . Unknown Exits Taken 2 | 1 . 1 . Scrap Searched 1 | . . 1 . Spaces Dug 2 | . . 2 . Terrain Destroyed 28 | . . 16 12 Melee 2 | . . 2 . Projectile . | . . . . AOE 26 | . . 14 12 Terrain Rammed . | . . . . Walls Destroyed . | . . . . Machines Disabled . | . . . . Actions | -11 -10 -10 -10 --------- Run | Yrd Mat Min Sub Total 2569 | 136 433 852 1148 Wait 89 | . 37 19 33 Move 2344 | 108 347 810 1079 Hop . | . . . . Pick Up 26 | 8 13 3 2 Fast Attach 11 | 7 3 . 1 Attach 5 | . 1 . 4 Detach . | . . . . Swap 10 | 1 2 4 3 Drop 14 | . 10 2 2 Fire 58 | 12 20 4 22 Melee 10 | . . 10 . Ram . | . . . . Kick . | . . . . Crush . | . . . . Escape Stasis . | . . . . Rewire 2 | . . . 2 Trap . | . . . . Miscellaneous . | . . . . Route ------- -11/Scrapyard -10/Materials (discovered 2 exits: [*Mat] / *Min) -10/Mines (discovered 3 exits: [*Mat x2] / [*Sub]) -10/Subcaves (discovered 2 exits: [*Mat] / [*Rec]) History --------- Turn | Location | Event 11 | -11/Scrapyard | Discovered new exit (range 15) 224 | -11/Scrapyard | Entered Materials 301 | -10/Materials | Build established: Mutant 424 | -10/Materials | Discovered new exit (range 12) 462 | -10/Materials | Identified exit to Mines 817 | -10/Materials | Repaired Mining Laser 903 | -10/Materials | Entered Mines 1287 | -10/Mines | Learned Materials terminal intel 1364 | -10/Mines | Joined a pair of Derelicts in attacking an 0b10 outpost 1679 | -10/Mines | Discovered new exit (range 10) 1771 | -10/Mines | Discovered new exit (range 4) 2002 | -10/Mines | Discovered new exit (range 5) 2101 | -10/Mines | Excavation squad dispatched 2101 | -10/Mines | A large section of the Mines collapsed 2267 | -10/Mines | Entered Subcaves 2268 | -10/Subcaves | Approached by a straggling Scientist 2272 | -10/Subcaves | Learned location of Zion (-6) 2278 | -10/Subcaves | Shifting Twisted Machinery released Mak. System Restoration Module 2280 | -10/Subcaves | Shifting Twisted Machinery released Flamer 2429 | -10/Subcaves | Disturbed a concealed Subdweller 2537 | -10/Subcaves | Discovered new exit (range 5) 2621 | -10/Subcaves | Ambushed by Subdwellers from Twisted Machinery 2638 | -10/Subcaves | Core integrity fell below 50% 2938 | -10/Subcaves | Build established: Scavenger-Mutant 3046 | -10/Subcaves | A swath of the cavern ceiling suddenly collapsed 3101 | -10/Subcaves | Shifting Twisted Machinery released Sub. Laser 3147 | -10/Subcaves | Shifting Twisted Machinery released Sub. Machine Gun 3710 | -10/Subcaves | Discovered new exit (range 15) 3725 | -10/Subcaves | Core integrity fell below 20% 3763 | -10/Subcaves | Destroyed by Autobeam Turret with Autobeam Last Messages --------------- we haven't found any suitable candidates yet." 03473_ B8-45X(u) deconstructs Twisted Machinery. 03710_ EXIT=FOUND 03714_ S-10 Pest destroyed. 03714_ Ion Engine destroyed. 03714_ Destroyed Ion Engine. 03714_ S-10 Pest destroyed. 03722_ Grenade Launcher destroyed. 03723_ Lgt. Ion Engine fries itself beyond repair. 03723_ The unstable cave ceiling collapses. 03727_ Flight Unit fries itself beyond repair. 03729_ Autobeam Turret suffers critical hit (Destroy). 03729_ Destroyed Autobeam. 03730_ The unstable cave ceiling collapses. 03732_ Lgt. Assault Rifle fries itself beyond repair. 03761_ Machine disabled. Map ----- +----------------------------------------------------+ | ### #???????????????????????????????????????? | | ###?## #???????????????????????????????????????? | | ??????# #???????????????????????????????????????? | | ???????###???????????????????????????????????????? | | ?????????????????????????????????????????????????? | | ?????????????????????????????????????????????????? | | ?????????????????????????????????????????????????? | | ?????????????????????????????????????????????????? | | ?????????????????????????????????????????????????? | | ?????????????????????????????????????????????????? | | ?????????????????????????????????????????????????? | | ?????????????????????????????????????????????????? | | ?????????????????????????????????????????????????? | | ?????????????????????????????????????????????????? | | ?????????????????????????????????????????????????? | | ??????????????????????????##?????????????????????? | | ???????????????????????###<#####?????????????????? | | ???????????????????????""" " ""#?????????????????? | | ??????????????????????? " " "#?????????????????? | | ???????????????????????? t t "#?????????????????? | | ?????????????######????? #?????????????????? | | #???????????## ####?? ??????????????????? | | #???????????# #?? ???????????????????? | | ##?????????## #??# #????????????????????? | | #????????## #??# ##???????????????????? | | #????????# #?##@ #???????????????????? | | ##??????## #?# ##???????????????????? | | ##?????# #???# % ##???????????????????? | | ###??## #??### #???????????????????? | | #### #??# #########????????????? | | ## #??# ##???????????? | | ##?# #???????????? | | ### "?????????? | | #### # ## ?????????? | | ##??## ####? ?????????? | | #### ##????## ##?????### ##??????????? | | ???####??????###### ####??????????##???????????? | | ??????????????????### #??????????????????????????? | | ????????????????????###??????????????????????????? | | ?????????????????????????????????????????????????? | | ?????????????????????????????????????????????????? | | ?????????????????????????????????????????????????? | | ?????????????????????????????????????????????????? | | ?????????????????????????????????????????????????? | | ?????????????????????????????????????????????????? | | ?????????????????????????????????????????????????? | | ?????????????????????????????????????????????????? | | ?????????????????????????????????????????????????? | | ?????????????????????????????????????????????????? | | ?????????????????????????????????????????????????? | +----------------------------------------------------+ Best States ------------- Heat Dissipation 35 Energy Generation 10 Energy Capacity 250 Matter Stores 300 Matter Capacity 300 Sight Range 16 Terrain Scan Density 10 Evasion (%) 40 Recoil Reduction 2 Item Schematics ----------------- None Robot Schematics ------------------ None Fabricated ------------ Nothing Repaired ---------- Mining Laser | 53% | -10/Materials Studied --------- None Alien Tech Used ----------------- None Achievements -------------- None Challenges ------------ None Game ------ Seed SkeletonLargeSegregator Manual? 0 Play Time 00:25:02 Cumulative 38.2 hours Start 2026.03.30 @ 22:30:17 End 2026.03.30 @ 22:53:32 Sessions 1 Manual Loads 0 Difficulty Rogue Special Mode None Game No. 48 Rogue 48 Adventurer 0 Explorer 0 Win Type - Total 0 Types 0/0/0/0/0/0/0/0/0/0 Lore% 15 Gallery% 30 Achievement% 22 Wizard Run 0 Options --------- Layout 2 ASCII 0 Keyboard 0 Movement Numpad Keybinds 1 Fullscreen 1 Font 24/Smallcaps Map View 50x44 Zoom Use 0% Tactical HUD 1 Map Filters NONE Filters NONE Steam 1 RUN: e5f16215-9551-40e6-867c-4b443d11c919